[Event "FIDE World Junior U20-ch Girls 2025"]
[Site "Petrovac"]
[Date "2025.02.26"]
[Round "2.20"]
[White "Seyilhanova, Gulmira"]
[Black "Wang, Chuqiao"]
[Result "0-1"]
[Annotator "ChessBase"]
[ECO "A07"]
[WhiteElo "1939"]
[BlackElo "2227"]
[PlyCount "104"]
[EventDate "2025.02.23"]
[EventType "swiss"]
[EventCountry "MNE"]
[SourceTitle "playchess.com"]
[Source "ChessBase"]
[SourceQuality "1"]
[TimeControl "40/5400+30:1800+30"]

1. Nf3 {[%emt 0:00:04]} d5 {[%emt 0:00:10]} 2. g3 {[%emt 0:00:06]} Bg4 {[%emt 0:00:16]} 3. Bg2 {[%emt 0:00:07]} Nf6 {[%emt 0:00:08]} 4. d3 {[%emt 0:00:10]} Nbd7 {[%emt 0:00:11]} 5. O-O {[%emt 0:00:27]} e5 {[%emt 0:00:23]} 6. Nbd2 {[%emt 0:00:38]} Be7 {[%emt 0:04:33]} 7. h3 {[%emt 0:01:51]} Bf5 {[%emt 0:00:19]} 8. Nh4 {[%emt 0:02:26]} Be6 {[%emt 0:03:20]} 9. e4 {[%emt 0:01:10]} dxe4 {[%emt 0:06:25]} 10. dxe4 {[%emt 0:00:11]} c6 {[%emt 0:07:09]} 11. Qe2 {[%emt 0:03:23]} Qc7 {[%emt 0:05:27]} 12. a4 {[%emt 0:05:30]} g6 {[%emt 0:01:43]} 13. b3 {[%emt 0:02:49]} O-O {[%emt 0:12:24]} 14. Nhf3 {[%emt 0:01:20]} Nh5 {[%emt 0:01:46]} 15. Nc4 {[%emt 0:02:44]} f6 {[%emt 0:09:11]} 16. Be3 {[%emt 0:15:22]} Ng7 {[%emt 0:03:20]} 17. Rfd1 {[%emt 0:01:34]} Rfd8 {[%emt 0:00:54]} 18. Nh2 {[%emt 0:10:32]} Nb6 {[%emt 0:07:49]} 19. Nb2 {[%emt 0:05:42]} Rxd1+ {[%emt 0:00:45]} 20. Rxd1 {[%emt 0:00:25]} Rd8 {[%emt 0:00:32]} 21. Nf1 {[%emt 0:11:26]} Rxd1 {[%emt 0:02:32]} 22. Qxd1 {[%emt 0:00:19]} Nd7 {[%emt 0:00:35]} 23. Nd2 {[%emt 0:01:33]} b5 {[%emt 0:00:55]} 24. axb5 {[%emt 0:08:33]} cxb5 {[%emt 0:00:04]} 25. c4 {[%emt 0:00:17]} a6 {[%emt 0:00:31]} 26. Bf1 {[%emt 0:00:59]} Qa5 {[%emt 0:01:03]} 27. Qc2 {[%emt 0:01:05]} Qc7 {[%emt 0:03:39]} 28. Kh2 {[%emt 0:02:22]} f5 {[%emt 0:00:56]} 29. f3 {[%emt 0:02:21]} a5 {[%emt 0:08:05]} 30. Bd3 {[%emt 0:03:29]} b4 {[%emt 0:00:41]} 31. Nf1 {[%emt 0:01:30]} Nc5 {[%emt 0:02:44]} 32. Bf2 {[%emt 0:00:43]} f4 {[%emt 0:01:18]} 33. g4 {[%emt 0:03:04]} Bd7 {[%emt 0:01:31]} 34. Be2 {[%emt 0:01:47]} Nge6 {[%emt 0:00:57]} 35. Qd1 {[%emt 0:04:28]} Kf7 {[%emt 0:02:28]} 36. Kg2 {[%emt 0:03:49]} h5 {[%emt 0:01:58]} 37. Nd2 {[%emt 0:03:39]} Qd6 {[%emt 0:00:44]} 38. Qc1 {[%emt 0:00:46]} Bc6 {[%emt 0:01:27]} 39. Kh2 {[%emt 0:00:47]} Qd7 {[%emt 0:00:45]} 40. gxh5 {[%emt 0:00:30]} gxh5 {[%emt 0:00:23]} 41. Qd1 {[%emt 0:30:31]} Ng5 {[%emt 0:30:12]} 42. h4 {[%emt 0:00:28]} Nge6 {[%emt 0:00:27]} 43. Bf1 {[%emt 0:00:21]} Nd4 {[%emt 0:00:29]} 44. Bh3 {[%emt 0:00:36]} Qd8 {[%emt 0:00:16]} 45. Qg1 {[%emt 0:00:34]} Ncxb3 {[%emt 0:00:21]} 46. Bxd4 {[%emt 0:00:28]} Qxd4 {[%emt 0:01:02]} 47. Qxd4 {[%emt 0:00:31]} Nxd4 {[%emt 0:00:07]} 48. c5 {[%emt 0:00:30]} a4 {[%emt 0:00:28]} 49. Nd3 {[%emt 0:00:19]} a3 {[%emt 0:04:17]} 50. Nxb4 {[%emt 0:00:40]} Bxc5 {[%emt 0:00:11]} 51. Nxc6 {[%emt 0:00:31]} a2 {[%emt 0:00:10]} 52. Nxe5+ {[%emt 0:00:57]} Kg7 {[%emt 0:00:15]} 0-1

[Event "FIDE World Junior U20-ch Girls 2025"]
[Site "Petrovac"]
[Date "2025.02.26"]
[Round "2.21"]
[White "Mgeladze, Kesaria"]
[Black "Nguyen, Binh Vy"]
[Result "1-0"]
[Annotator "ChessBase"]
[ECO "B48"]
[WhiteElo "2219"]
[BlackElo "1926"]
[PlyCount "104"]
[EventDate "2025.02.23"]
[EventType "swiss"]
[EventCountry "MNE"]
[SourceTitle "playchess.com"]
[Source "ChessBase"]
[SourceQuality "1"]
[TimeControl "40/5400+30:1800+30"]

1. e4 {[%emt 0:00:03]} c5 {[%emt 0:00:06]} 2. Nf3 {[%emt 0:00:08]} e6 {[%emt 0:00:12]} 3. d4 {[%emt 0:00:05]} cxd4 {[%emt 0:00:07]} 4. Nxd4 {[%emt 0:00:03]} Nc6 {[%emt 0:00:09]} 5. Nc3 {[%emt 0:00:30]} Qc7 {[%emt 0:00:23]} 6. Be3 {[%emt 0:00:08]} a6 {[%emt 0:00:07]} 7. Qf3 {[%emt 0:00:06]} Bd6 {[%emt 0:04:50]} 8. O-O-O {[%emt 0:00:19]} Be5 {[%emt 0:00:32]} 9. Nxc6 {[%emt 0:00:16]} bxc6 {[%emt 0:04:06]} 10. Bd4 {[%emt 0:00:13]} Nf6 {[%emt 0:01:21]} 11. Bxe5 {[%emt 0:00:31]} Qxe5 {[%emt 0:00:09]} 12. Qe3 {[%emt 0:00:06]} Qa5 {[%emt 0:10:59]} 13. f4 {[%emt 0:12:17]} d5 {[%emt 0:05:58]} 14. exd5 {[%emt 0:19:41]} cxd5 {[%emt 0:04:26]} 15. g4 {[%emt 0:03:17]} O-O {[%emt 0:02:22]} 16. g5 {[%emt 0:01:01]} Ne4 {[%emt 0:06:50]} 17. Nxe4 {[%emt 0:02:03]} dxe4 {[%emt 0:00:08]} 18. Qxe4 {[%emt 0:04:58]} Ra7 {[%emt 0:20:29]} 19. Bd3 {[%emt 0:05:03]} g6 {[%emt 0:00:22]} 20. a3 {[%emt 0:01:22]} Bb7 {[%emt 0:05:17]} 21. Qd4 {[%emt 0:01:07]} Raa8 {[%emt 0:02:18]} 22. Rhf1 {[%emt 0:02:43]} Rab8 {[%emt 0:03:20]} 23. h4 {[%emt 0:02:06]} Rfd8 {[%emt 0:06:39]} 24. Qf6 {[%emt 0:03:32]} Qb6 {[%emt 0:04:30]} 25. h5 {[%emt 0:06:43]} Qe3+ {[%emt 0:01:00]} 26. Kb1 {[%emt 0:04:12]} Qd4 {[%emt 0:06:29]} 27. Qxd4 {[%emt 0:03:11]} Rxd4 {[%emt 0:00:05]} 28. Be2 {[%emt 0:00:18]} Re4 {[%emt 0:02:45]} 29. Rd2 {[%emt 0:04:33]} gxh5 {[%emt 0:03:32]} 30. Bxh5 {[%emt 0:00:05]} Bd5 {[%emt 0:00:41]} 31. Be2 {[%emt 0:05:45]} a5 {[%emt 0:00:53]} 32. Bd3 {[%emt 0:00:11]} Re3 {[%emt 0:00:36]} 33. Re2 {[%emt 0:04:05]} Rh3 {[%emt 0:01:27]} 34. Kc1 {[%emt 0:01:36]} Rc8 {[%emt 0:01:02]} 35. Rd2 {[%emt 0:01:34]} Rb8 {[%emt 0:02:01]} 36. b3 {[%emt 0:04:40]} Bc6 {[%emt 0:01:37]} 37. a4 {[%emt 0:00:45]} Bd5 {[%emt 0:00:24]} 38. Kb2 {[%emt 0:01:51]} Bc6 {[%emt 0:00:23]} 39. Kc1 {[%emt 0:02:00]} Bd5 {[%emt 0:00:30]} 40. Bb5 {[%emt 0:01:01]} Rc8 {[%emt 0:00:23]} 41. Rxd5 {[%emt 0:31:33]} exd5 {[%emt 0:30:42]} 42. Bd7 {[%emt 0:00:04]} Rcc3 {[%emt 0:00:22]} 43. Bxh3 {[%emt 0:00:05]} Rxh3 {[%emt 0:00:03]} 44. Rd1 {[%emt 0:00:14]} Rf3 {[%emt 0:00:39]} 45. Rxd5 {[%emt 0:00:49]} Rxf4 {[%emt 0:00:06]} 46. Rxa5 {[%emt 0:00:02]} Kf8 {[%emt 0:00:12]} 47. Rc5 {[%emt 0:00:35]} Ke7 {[%emt 0:01:19]} 48. a5 {[%emt 0:00:23]} Rb4 {[%emt 0:00:24]} 49. a6 {[%emt 0:00:37]} Rb8 {[%emt 0:00:23]} 50. a7 {[%emt 0:00:29]} Ra8 {[%emt 0:00:08]} 51. Rc7+ {[%emt 0:00:05]} Kd6 {[%emt 0:00:13]} 52. Rxf7 {[%emt 0:00:05]} Kd5 {[%emt 0:00:37]} 1-0

[Event "FIDE World Junior U20-ch Girls 2025"]
[Site "Petrovac"]
[Date "2025.02.26"]
[Round "2.22"]
[White "Kaldarova, Ayaulym"]
[Black "Guo, Hanxi"]
[Result "1-0"]
[Annotator "ChessBase"]
[ECO "E05"]
[WhiteElo "2248"]
[BlackElo "1854"]
[PlyCount "113"]
[EventDate "2025.02.23"]
[EventType "swiss"]
[EventCountry "MNE"]
[SourceTitle "playchess.com"]
[Source "ChessBase"]
[SourceQuality "1"]
[TimeControl "40/5400+30:1800+30"]

1. Nf3 {[%emt 0:00:09]} Nf6 {[%emt 0:00:55]} 2. c4 {[%emt 0:00:19]} e6 {[%emt 0:00:05]} 3. g3 {[%emt 0:00:13]} Be7 {[%emt 0:00:28]} 4. Bg2 {[%emt 0:00:17]} O-O {[%emt 0:00:19]} 5. O-O {[%emt 0:00:14]} d5 {[%emt 0:00:04]} 6. d4 {[%emt 0:01:00]} dxc4 {[%emt 0:01:51]} 7. Qc2 {[%emt 0:00:29]} a6 {[%emt 0:00:35]} 8. a4 {[%emt 0:00:22]} Bd7 {[%emt 0:00:39]} 9. Qxc4 {[%emt 0:00:20]} Bc6 {[%emt 0:00:25]} 10. Bg5 {[%emt 0:01:28]} Bd5 {[%emt 0:01:30]} 11. Qc2 {[%emt 0:00:35]} Be4 {[%emt 0:03:28]} 12. Qc1 {[%emt 0:00:43]} c6 {[%emt 0:11:37]} 13. Rd1 {[%emt 0:05:30]} Nbd7 {[%emt 0:02:26]} 14. Nc3 {[%emt 0:05:23]} Bg6 {[%emt 0:06:17]} 15. a5 {[%emt 0:12:03]} h6 {[%emt 0:02:39]} 16. Bxf6 {[%emt 0:03:15]} Nxf6 {[%emt 0:00:25]} 17. Ne5 {[%emt 0:00:27]} Bh7 {[%emt 0:01:15]} 18. Nc4 {[%emt 0:05:32]} Qc7 {[%emt 0:01:36]} 19. e4 {[%emt 0:01:55]} Rad8 {[%emt 0:00:56]} 20. Qe3 {[%emt 0:05:22]} Rfe8 {[%emt 0:03:36]} 21. Na4 {[%emt 0:04:10]} Bb4 {[%emt 0:02:09]} 22. Nc5 {[%emt 0:05:15]} Nd7 {[%emt 0:02:55]} 23. e5 {[%emt 0:09:53]} Re7 {[%emt 0:06:35]} 24. Nd6 {[%emt 0:04:08]} Rb8 {[%emt 0:03:11]} 25. Rdc1 {[%emt 0:04:35]} Bxc5 {[%emt 0:07:19]} 26. dxc5 {[%emt 0:00:07]} Nf8 {[%emt 0:00:27]} 27. h4 {[%emt 0:02:44]} Rd7 {[%emt 0:02:18]} 28. h5 {[%emt 0:00:18]} Qd8 {[%emt 0:01:41]} 29. Rc4 {[%emt 0:03:08]} Qg5 {[%emt 0:00:41]} 30. Qe2 {[%emt 0:02:44]} Bf5 {[%emt 0:01:10]} 31. Rd4 {[%emt 0:05:51]} f6 {[%emt 0:01:31]} 32. Rad1 {[%emt 0:07:40]} fxe5 {[%emt 0:01:37]} 33. Qxe5 {[%emt 0:00:04]} Bc2 {[%emt 0:02:44]} 34. Qxg5 {[%emt 0:02:11]} hxg5 {[%emt 0:00:07]} 35. Re1 {[%emt 0:02:30]} Bb3 {[%emt 0:00:50]} 36. Re5 {[%emt 0:01:30]} Nh7 {[%emt 0:00:42]} 37. Bh3 {[%emt 0:00:08]} Re7 {[%emt 0:00:38]} 38. Ne4 {[%emt 0:03:15]} Bd5 {[%emt 0:01:02]} 39. Nxg5 {[%emt 0:00:56]} Nxg5 {[%emt 0:00:09]} 40. Rxg5 {[%emt 0:00:04]} e5 {[%emt 0:01:34]} 41. Rd2 {[%emt 0:31:06]} Kf7 {[%emt 0:31:09]} 42. Rf5+ {[%emt 0:00:00]} Kg8 {[%emt 0:00:00]} 43. Bg2 {[%emt 0:00:00]} Rd8 {[%emt 0:00:00]} 44. Rg5 {[%emt 0:00:00]} Kf7 {[%emt 0:00:00]} 45. Be4 {[%emt 0:00:00]} Rdd7 {[%emt 0:00:00]} 46. Bg6+ {[%emt 0:00:00]} Kf8 {[%emt 0:00:00]} 47. Bf5 {[%emt 0:00:00]} Be6 {[%emt 0:00:00]} 48. Rxd7 {[%emt 0:00:00]} Bxd7 {[%emt 0:00:00]} 49. Bxd7 {[%emt 0:00:00]} Rxd7 {[%emt 0:00:00]} 50. Rxe5 {[%emt 0:00:00]} Rd2 {[%emt 0:00:00]} 51. b4 {[%emt 0:00:00]} Rd4 {[%emt 0:00:00]} 52. Rf5+ {[%emt 0:00:00]} Ke7 {[%emt 0:00:00]} 53. Rf4 {[%emt 0:00:00]} Rd5 {[%emt 0:00:00]} 54. g4 {[%emt 0:00:00]} Ke6 {[%emt 0:00:00]} 55. Kg2 {[%emt 0:00:00]} Rd3 {[%emt 0:00:00]} 56. f3 {[%emt 0:00:00]} Ke5 {[%emt 0:00:00]} 57. Rf7 {[%emt 0:00:00]} 1-0

[Event "FIDE World Junior U20-ch Girls 2025"]
[Site "Petrovac"]
[Date "2025.02.26"]
[Round "2.23"]
[White "Imomkuzieva, Nilufarkhon"]
[Black "Song, Yuxin"]
[Result "0-1"]
[Annotator "ChessBase"]
[ECO "B90"]
[WhiteElo "1983"]
[BlackElo "2381"]
[PlyCount "84"]
[EventDate "2025.02.23"]
[EventType "swiss"]
[EventCountry "MNE"]
[SourceTitle "playchess.com"]
[Source "ChessBase"]
[SourceQuality "1"]
[TimeControl "40/5400+30:1800+30"]

1. e4 {[%emt 0:00:13]} c5 {[%emt 0:00:05]} 2. Nf3 {[%emt 0:00:03]} d6 {[%emt 0:00:07]} 3. d4 {[%emt 0:00:02]} cxd4 {[%emt 0:00:05]} 4. Nxd4 {[%emt 0:00:04]} Nf6 {[%emt 0:00:05]} 5. Nc3 {[%emt 0:00:03]} a6 {[%emt 0:00:06]} 6. h3 {[%emt 0:00:03]} e6 {[%emt 0:00:11]} 7. g4 {[%emt 0:00:15]} b5 {[%emt 0:00:16]} 8. Bg2 {[%emt 0:02:05]} Bb7 {[%emt 0:00:07]} 9. O-O {[%emt 0:01:37]} Nfd7 {[%emt 0:16:38]} 10. Re1 {[%emt 0:00:29]} Be7 {[%emt 0:05:44]} 11. a4 {[%emt 0:03:21]} bxa4 {[%emt 0:00:46]} 12. Rxa4 {[%emt 0:00:44]} O-O {[%emt 0:00:13]} 13. Nde2 {[%emt 0:01:50]} Nc6 {[%emt 0:00:58]} 14. Bf4 {[%emt 0:01:40]} Nb6 {[%emt 0:02:14]} 15. Ra1 {[%emt 0:01:13]} Qc7 {[%emt 0:01:56]} 16. b3 {[%emt 0:02:21]} Ne5 {[%emt 0:05:10]} 17. Qd2 {[%emt 0:11:29]} Ng6 {[%emt 0:07:39]} 18. Be3 {[%emt 0:02:14]} Rac8 {[%emt 0:04:16]} 19. Rad1 {[%emt 0:02:59]} Nd7 {[%emt 0:03:11]} 20. Bg5 {[%emt 0:05:40]} f6 {[%emt 0:04:58]} 21. Bf4 {[%emt 0:02:31]} Nxf4 {[%emt 0:10:56]} 22. Qxf4 {[%emt 0:00:11]} Ne5 {[%emt 0:00:04]} 23. Qg3 {[%emt 0:04:31]} Ng6 {[%emt 0:04:18]} 24. Rd3 {[%emt 0:05:18]} Ne5 {[%emt 0:00:35]} 25. Rdd1 {[%emt 0:11:35]} f5 {[%emt 0:00:42]} 26. exf5 {[%emt 0:05:44]} Bxg2 {[%emt 0:00:05]} 27. Qxg2 {[%emt 0:01:37]} exf5 {[%emt 0:02:49]} 28. Nd5 {[%emt 0:00:14]} Qa7 {[%emt 0:00:09]} 29. Nd4 {[%emt 0:01:43]} fxg4 {[%emt 0:02:20]} 30. hxg4 {[%emt 0:01:10]} Bg5 {[%emt 0:02:00]} 31. Re4 {[%emt 0:03:59]} Ng6 {[%emt 0:01:44]} 32. Qh2 {[%emt 0:07:02]} Ne5 {[%emt 0:12:11]} 33. Qg3 {[%emt 0:00:37]} Rce8 {[%emt 0:03:37]} 34. Rde1 {[%emt 0:05:22]} Bh4 {[%emt 0:00:10]} 35. Qxh4 {[%emt 0:16:43]} Qxd4 {[%emt 0:00:01]} 36. Ne7+ {[%emt 0:00:18]} Rxe7 {[%emt 0:00:05]} 37. Qxe7 {[%emt 0:00:04]} Qxf2+ {[%emt 0:00:04]} 38. Kh1 {[%emt 0:00:04]} Qf3+ {[%emt 0:00:42]} 39. Kg1 {[%emt 0:02:07]} Qg3+ {[%emt 0:00:13]} 40. Kh1 {[%emt 0:00:03]} Qh3+ {[%emt 0:00:17]} 41. Kg1 {[%emt 0:30:03]} Nf3+ {[%emt 0:30:03]} 42. Kf2 {[%emt 0:00:06]} Qh2+ {[%emt 0:00:04]} 0-1

[Event "FIDE World Junior U20-ch Girls 2025"]
[Site "Petrovac"]
[Date "2025.02.26"]
[Round "2.24"]
[White "Avetisyan, Ani"]
[Black "Kaliakhmet, Elnaz"]
[Result "0-1"]
[Annotator "ChessBase"]
[ECO "D46"]
[WhiteElo "1904"]
[BlackElo "2242"]
[PlyCount "94"]
[EventDate "2025.02.23"]
[EventType "swiss"]
[EventCountry "MNE"]
[SourceTitle "playchess.com"]
[Source "ChessBase"]
[SourceQuality "1"]
[TimeControl "40/5400+30:1800+30"]

1. d4 {[%emt 0:00:32]} Nf6 {[%emt 0:00:10]} 2. c4 {[%emt 0:00:12]} e6 {[%emt 0:00:04]} 3. Nf3 {[%emt 0:00:46]} d5 {[%emt 0:00:06]} 4. Nc3 {[%emt 0:00:14]} c6 {[%emt 0:00:07]} 5. Qc2 {[%emt 0:00:17]} Nbd7 {[%emt 0:08:10]} 6. e3 {[%emt 0:04:31]} Bd6 {[%emt 0:00:05]} 7. Bd3 {[%emt 0:00:56]} dxc4 {[%emt 0:00:05]} 8. Bxc4 {[%emt 0:00:11]} b5 {[%emt 0:00:05]} 9. Bd3 {[%emt 0:01:38]} Bb7 {[%emt 0:00:04]} 10. O-O {[%emt 0:03:26]} O-O {[%emt 0:00:36]} 11. Rd1 {[%emt 0:20:03]} Qc7 {[%emt 0:01:28]} 12. b3 {[%emt 0:08:44]} a6 {[%emt 0:06:52]} 13. Bb2 {[%emt 0:08:00]} Rac8 {[%emt 0:10:20]} 14. Rac1 {[%emt 0:01:13]} h6 {[%emt 0:01:03]} 15. h3 {[%emt 0:02:45]} Qb8 {[%emt 0:10:49]} 16. Qe2 {[%emt 0:02:36]} c5 {[%emt 0:06:22]} 17. dxc5 {[%emt 0:05:26]} Nxc5 {[%emt 0:00:29]} 18. Bb1 {[%emt 0:00:07]} Rfd8 {[%emt 0:04:43]} 19. Rc2 {[%emt 0:09:34]} b4 {[%emt 0:11:54]} 20. Na4 {[%emt 0:00:11]} Nxa4 {[%emt 0:03:03]} 21. Rxc8 {[%emt 0:02:58]} Rxc8 {[%emt 0:07:59]} 22. bxa4 {[%emt 0:00:21]} Rd8 {[%emt 0:11:22]} 23. Bd4 {[%emt 0:04:34]} a5 {[%emt 0:06:58]} 24. Qb5 {[%emt 0:10:35]} Qa8 {[%emt 0:01:15]} 25. Ne1 {[%emt 0:05:14]} Bc6 {[%emt 0:00:37]} 26. Qe2 {[%emt 0:01:21]} Bxa4 {[%emt 0:00:27]} 27. Rc1 {[%emt 0:00:01]} Rc8 {[%emt 0:05:00]} 28. Qd2 {[%emt 0:04:46]} Rxc1 {[%emt 0:00:48]} 29. Qxc1 {[%emt 0:00:05]} Bc6 {[%emt 0:02:12]} 30. Qd2 {[%emt 0:02:25]} Bd5 {[%emt 0:00:15]} 31. Kf1 {[%emt 0:01:45]} e5 {[%emt 0:00:59]} 32. Bb2 {[%emt 0:00:28]} Bc4+ {[%emt 0:00:19]} 33. Kg1 {[%emt 0:00:08]} Qd5 {[%emt 0:00:18]} 34. Qc2 {[%emt 0:00:48]} Qb5 {[%emt 0:01:26]} 35. Qf5 {[%emt 0:00:34]} Be6 {[%emt 0:00:13]} 36. Qf3 {[%emt 0:00:16]} Qd5 {[%emt 0:00:43]} 37. Qe2 {[%emt 0:00:27]} a4 {[%emt 0:00:25]} 38. e4 {[%emt 0:00:33]} Qc6 {[%emt 0:00:13]} 39. Nd3 {[%emt 0:00:21]} Qb5 {[%emt 0:01:22]} 40. Kf1 {[%emt 0:00:32]} Bc4 {[%emt 0:00:17]} 41. Kg1 {[%emt 0:30:38]} a3 {[%emt 0:30:14]} 42. Bc1 {[%emt 0:00:14]} b3 {[%emt 0:00:20]} 43. axb3 {[%emt 0:00:14]} Qxb3 {[%emt 0:00:02]} 44. Bc2 {[%emt 0:00:00]} Qb5 {[%emt 0:00:00]} 45. Qd1 {[%emt 0:00:00]} a2 {[%emt 0:00:00]} 46. Be3 {[%emt 0:00:00]} Bxd3 {[%emt 0:00:00]} 47. Bxd3 {[%emt 0:00:00]} Qb2 {[%emt 0:00:00]} 0-1

[Event "FIDE World Junior U20-ch Girls 2025"]
[Site "Petrovac"]
[Date "2025.02.26"]
[Round "2.25"]
[White "Pipiras, Filipa Fortuna"]
[Black "Gasparyan, Milena"]
[Result "1/2-1/2"]
[Annotator "ChessBase"]
[ECO "E46"]
[WhiteElo "2200"]
[BlackElo "1986"]
[PlyCount "130"]
[EventDate "2025.02.23"]
[EventType "swiss"]
[EventCountry "MNE"]
[SourceTitle "playchess.com"]
[Source "ChessBase"]
[SourceQuality "1"]
[TimeControl "40/5400+30:1800+30"]

1. d4 {[%emt 0:00:35]} Nf6 {[%emt 0:00:15]} 2. c4 {[%emt 0:00:19]} e6 {[%emt 0:00:08]} 3. Nc3 {[%emt 0:00:28]} Bb4 {[%emt 0:00:15]} 4. e3 {[%emt 0:00:26]} O-O {[%emt 0:00:58]} 5. Bd2 {[%emt 0:00:17]} d5 {[%emt 0:02:01]} 6. Nf3 {[%emt 0:00:19]} Re8 {[%emt 0:11:49]} 7. Be2 {[%emt 0:05:59]} c5 {[%emt 0:07:19]} 8. a3 {[%emt 0:02:01]} Bxc3 {[%emt 0:00:23]} 9. Bxc3 {[%emt 0:00:08]} Ne4 {[%emt 0:00:12]} 10. Rc1 {[%emt 0:02:37]} cxd4 {[%emt 0:07:10]} 11. Qxd4 {[%emt 0:04:45]} Nxc3 {[%emt 0:00:12]} 12. Qxc3 {[%emt 0:00:07]} dxc4 {[%emt 0:02:27]} 13. Bxc4 {[%emt 0:14:23]} b6 {[%emt 0:14:14]} 14. O-O {[%emt 0:05:42]} Qe7 {[%emt 0:10:18]} 15. Ne5 {[%emt 0:12:50]} Nd7 {[%emt 0:13:35]} 16. Bb5 {[%emt 0:23:55]} a6 {[%emt 0:00:30]} 17. Bc6 {[%emt 0:03:49]} Ra7 {[%emt 0:00:12]} 18. Qd4 {[%emt 0:00:49]} Rf8 {[%emt 0:02:40]} 19. Bxd7 {[%emt 0:04:22]} Bxd7 {[%emt 0:00:08]} 20. Qxb6 {[%emt 0:00:04]} Bb5 {[%emt 0:00:31]} 21. Rfd1 {[%emt 0:00:27]} Rb7 {[%emt 0:08:40]} 22. Qd4 {[%emt 0:00:20]} f6 {[%emt 0:02:27]} 23. Nc6 {[%emt 0:01:51]} Qe8 {[%emt 0:00:07]} 24. Qd6 {[%emt 0:03:40]} e5 {[%emt 0:04:31]} 25. Qd5+ {[%emt 0:06:46]} Qf7 {[%emt 0:03:50]} 26. Na5 {[%emt 0:02:18]} Rd7 {[%emt 0:06:01]} 27. Qxf7+ {[%emt 0:00:09]} Rdxf7 {[%emt 0:00:01]} 28. b3 {[%emt 0:01:47]} Rb8 {[%emt 0:01:20]} 29. a4 {[%emt 0:00:37]} Be8 {[%emt 0:00:23]} 30. Rd6 {[%emt 0:00:31]} Ra7 {[%emt 0:00:09]} 31. Rc3 {[%emt 0:01:01]} Bxa4 {[%emt 0:01:05]} 32. g4 {[%emt 0:01:18]} Bb5 {[%emt 0:00:00]} 33. Kg2 {[%emt 0:00:32]} Kf7 {[%emt 0:01:06]} 34. h4 {[%emt 0:00:33]} Rd7 {[%emt 0:01:55]} 35. Rxd7+ {[%emt 0:00:28]} Bxd7 {[%emt 0:00:01]} 36. Rc7 {[%emt 0:00:32]} Ke6 {[%emt 0:00:12]} 37. Ra7 {[%emt 0:01:11]} Rb6 {[%emt 0:00:21]} 38. Kg3 {[%emt 0:00:05]} g6 {[%emt 0:01:20]} 39. Nb7 {[%emt 0:00:31]} Kd5 {[%emt 0:00:35]} 40. e4+ {[%emt 0:00:33]} Kd4 {[%emt 0:00:12]} 41. Na5 {[%emt 0:10:06]} Be6 {[%emt 0:02:46]} 42. Rxh7 {[%emt 0:03:18]} Kxe4 {[%emt 0:00:56]} 43. f3+ {[%emt 0:01:05]} Kd3 {[%emt 0:05:58]} 44. h5 {[%emt 0:05:49]} gxh5 {[%emt 0:00:39]} 45. gxh5 {[%emt 0:00:06]} e4 {[%emt 0:07:23]} 46. fxe4 {[%emt 0:02:34]} Kxe4 {[%emt 0:05:19]} 47. Re7 {[%emt 0:01:56]} Kf5 {[%emt 0:00:57]} 48. h6 {[%emt 0:00:14]} Rb8 {[%emt 0:00:52]} 49. h7 {[%emt 0:01:14]} Rh8 {[%emt 0:02:39]} 50. Nc4 {[%emt 0:02:46]} Bxc4 {[%emt 0:04:53]} 51. bxc4 {[%emt 0:00:05]} a5 {[%emt 0:00:02]} 52. c5 {[%emt 0:01:53]} a4 {[%emt 0:00:15]} 53. c6 {[%emt 0:00:06]} a3 {[%emt 0:01:19]} 54. c7 {[%emt 0:01:45]} a2 {[%emt 0:02:37]} 55. Re1 {[%emt 0:00:06]} Kg6 {[%emt 0:00:12]} 56. Ra1 {[%emt 0:01:53]} Kxh7 {[%emt 0:01:32]} 57. Rh1+ {[%emt 0:00:41]} Kg7 {[%emt 0:00:03]} 58. Rxh8 {[%emt 0:00:07]} a1=Q {[%emt 0:00:04]} 59. c8=Q {[%emt 0:00:09]} Qg1+ {[%emt 0:00:04]} 60. Kf3 {[%emt 0:00:51]} Qf1+ {[%emt 0:00:04]} 61. Ke4 {[%emt 0:01:17]} Qe2+ {[%emt 0:00:12]} 62. Kd5 {[%emt 0:01:46]} Qd3+ {[%emt 0:00:09]} 63. Kc6 {[%emt 0:01:17]} Qc4+ {[%emt 0:00:06]} 64. Kd6 {[%emt 0:01:04]} Qd4+ {[%emt 0:00:06]} 65. Kc6 {[%emt 0:00:58]} Qc4+ {[%emt 0:00:07]} 1/2-1/2

[Event "FIDE World Junior U20-ch Girls 2025"]
[Site "Petrovac"]
[Date "2025.02.26"]
[Round "2.26"]
[White "Mrittika Mallick"]
[Black "Karacsonyi, Kata"]
[Result "1/2-1/2"]
[Annotator "ChessBase"]
[ECO "B40"]
[WhiteElo "2058"]
[BlackElo "2191"]
[PlyCount "89"]
[EventDate "2025.02.23"]
[EventType "swiss"]
[EventCountry "MNE"]
[SourceTitle "playchess.com"]
[Source "ChessBase"]
[SourceQuality "1"]
[TimeControl "40/5400+30:1800+30"]

1. e4 {[%emt 0:00:02]} c5 {[%emt 0:00:07]} 2. Nf3 {[%emt 0:00:08]} e6 {[%emt 0:00:15]} 3. d4 {[%emt 0:01:24]} cxd4 {[%emt 0:00:06]} 4. Nxd4 {[%emt 0:00:06]} Nf6 {[%emt 0:00:09]} 5. Nc3 {[%emt 0:00:19]} Nc6 {[%emt 0:00:07]} 6. Nxc6 {[%emt 0:00:37]} bxc6 {[%emt 0:00:07]} 7. e5 {[%emt 0:00:12]} Nd5 {[%emt 0:00:05]} 8. Ne4 {[%emt 0:00:13]} Bb7 {[%emt 0:03:00]} 9. c4 {[%emt 0:04:09]} Nb4 {[%emt 0:00:10]} 10. Bg5 {[%emt 0:22:44]} Qc7 {[%emt 0:17:49]} 11. f4 {[%emt 0:03:57]} c5 {[%emt 0:12:50]} 12. Nc3 {[%emt 0:04:09]} a6 {[%emt 0:01:43]} 13. Qd2 {[%emt 0:04:01]} h6 {[%emt 0:05:12]} 14. Bh4 {[%emt 0:00:40]} d6 {[%emt 0:20:47]} 15. O-O-O {[%emt 0:05:49]} dxe5 {[%emt 0:01:13]} 16. fxe5 {[%emt 0:03:04]} g5 {[%emt 0:08:14]} 17. Bg3 {[%emt 0:03:37]} Rd8 {[%emt 0:02:47]} 18. Qe1 {[%emt 0:04:51]} Rxd1+ {[%emt 0:03:58]} 19. Qxd1 {[%emt 0:00:16]} Bg7 {[%emt 0:04:16]} 20. Qe2 {[%emt 0:07:08]} Nc6 {[%emt 0:01:23]} 21. Qe3 {[%emt 0:12:49]} Nxe5 {[%emt 0:05:58]} 22. h4 {[%emt 0:03:20]} Ng4 {[%emt 0:03:28]} 23. Qe1 {[%emt 0:03:21]} Be5 {[%emt 0:03:20]} 24. Bxe5 {[%emt 0:01:19]} Qxe5 {[%emt 0:00:57]} 25. Qxe5 {[%emt 0:00:06]} Nxe5 {[%emt 0:00:03]} 26. hxg5 {[%emt 0:00:11]} h5 {[%emt 0:00:06]} 27. Na4 {[%emt 0:00:39]} Nd7 {[%emt 0:00:44]} 28. Rh4 {[%emt 0:02:52]} Bc6 {[%emt 0:00:32]} 29. Nc3 {[%emt 0:00:57]} Ne5 {[%emt 0:00:48]} 30. Ne4 {[%emt 0:00:44]} Bxe4 {[%emt 0:00:16]} 31. Rxe4 {[%emt 0:00:02]} Ng6 {[%emt 0:00:44]} 32. Re3 {[%emt 0:02:14]} Ke7 {[%emt 0:00:37]} 33. Rb3 {[%emt 0:02:13]} Rd8 {[%emt 0:00:44]} 34. Rb7+ {[%emt 0:02:31]} Rd7 {[%emt 0:00:26]} 35. Rxd7+ {[%emt 0:00:07]} Kxd7 {[%emt 0:00:04]} 36. Kd2 {[%emt 0:00:11]} Kd6 {[%emt 0:00:36]} 37. Ke3 {[%emt 0:00:25]} Ke5 {[%emt 0:00:45]} 38. Bd3 {[%emt 0:03:21]} Ne7 {[%emt 0:02:00]} 39. g3 {[%emt 0:02:52]} a5 {[%emt 0:01:17]} 40. b3 {[%emt 0:00:43]} Nf5+ {[%emt 0:01:40]} 41. Kf3 {[%emt 0:30:28]} Ne7 {[%emt 0:14:50]} 42. Ke3 {[%emt 0:00:00]} Ng6 {[%emt 0:00:56]} 43. Bc2 {[%emt 0:00:00]} Ne7 {[%emt 0:09:39]} 44. Bd3 {[%emt 0:00:00]} Nf5+ {[%emt 0:01:50]} 45. Kf3 {[%emt 0:00:00]} 1/2-1/2